bitfinex-derivatives/quotes_BTCF0:USTF0_20251230
["timestamp","ask_amount","ask_price","bid_price","bid_amount"]
[1767105495899,0.05748,88243.0,88220.0,0.09644]
[1767105496405,0.0113481,88233.0,88216.0,0.09644]
[1767105496597,0.0113481,88233.0,88223.0,0.00017005]
[1767105496902,0.0113477,88237.0,88223.0,0.00017005]
[1767105497304,0.00017005,88240.0,88223.0,0.00017005]
[1767105497710,0.0113476,88238.0,88223.0,0.00017005]
[1767105498099,0.00017005,88240.0,88223.0,0.00017005]
[1767105499108,0.0113473,88239.0,88223.0,0.00017005]
[1767105499304,0.0113478,88236.0,88223.0,0.00017005]
[1767105499504,0.01151735,88240.0,88223.0,0.00017005]
[1767105499700,0.00017005,88240.0,88223.0,0.00017005]
[1767105499900,0.11936,88239.0,88223.0,0.00017005]
[1767105500303,0.00017005,88240.0,88223.0,0.00017005]
[1767105501206,0.00017005,88240.0,88230.0,0.0113484]
[1767105501402,0.00017005,88240.0,88225.0,0.011349]
[1767105501904,0.17009503,88240.0,88223.0,0.00017005]
[1767105502108,0.0113478,88236.0,88216.0,0.09644]
[1767105502310,0.0113481,88234.0,88216.0,0.09644]
[1767105502904,0.00017005,88240.0,88224.0,0.0113492]
[1767105503102,0.00017005,88240.0,88216.0,0.09644]
[1767105503103,0.00017005,88240.0,88223.0,0.00017005]
[1767105503702,5e-08,88240.0,88238.0,0.0113473]
[1767105503901,0.15388,88250.0,88224.0,0.0113492]
[1767105504099,0.05744,88253.0,88237.0,0.0113475]
[1767105504701,0.05744,88253.0,88229.0,0.09644]
[1767105505004,0.011342,88281.0,88247.0,0.0113462]
[1767105505208,0.011344,88265.0,88244.0,0.0113467]
[1767105505415,0.011344,88265.0,88230.0,0.28324584]
[1767105505416,0.0113452,88256.0,88212.0,0.06093779]
[1767105505710,0.05744,88265.0,88237.0,0.0113475]
[1767105505711,0.011345,88257.0,88237.0,0.0113475]
[1767105505911,0.0113454,88255.0,88234.0,0.1077879]
[1767105506113,0.0113454,88255.0,88232.0,0.05744]
[1767105506114,0.0113463,88248.0,88232.0,0.00016994]
[1767105506313,0.00016994,88250.0,88232.0,0.15404994]
[1767105506515,0.00016994,88250.0,88233.0,0.0113481]
[1767105506813,0.00016994,88250.0,88232.0,0.15404994]
[1767105507014,0.01151594,88250.0,88232.0,0.16539814]
[1767105507614,0.00016994,88250.0,88232.0,0.09660994]
[1767105507908,0.00016994,88250.0,88212.0,0.06093779]
[1767105507909,0.0113473,88240.0,88220.0,0.15384]
[1767105508301,0.16992498,88240.0,88213.0,0.1246765]
[1767105508506,0.0113486,88230.0,88213.0,0.0113507]
[1767105508704,0.16992498,88240.0,88213.0,0.0113507]
[1767105508910,0.00016994,88235.0,88218.0,0.00016994]
[1767105509110,0.0113493,88224.0,88201.0,0.0113521]
[1767105509310,0.17793623,88234.0,88199.0,0.0574]
[1767105509311,0.0113489,88228.0,88207.0,0.0113514]
[1767105509610,0.15384,88234.0,88200.0,0.09644]
[1767105509810,0.0113498,88220.0,88200.0,0.09644]
[1767105510208,0.00017004,88219.0,88201.0,0.00017004]
[1767105510509,0.00017004,88219.0,88206.0,0.0113515]
[1767105510899,0.00017004,88219.0,88210.0,0.011351]
[1767105511100,0.09644,88234.0,88211.0,0.09644]
[1767105511308,0.09644,88242.0,88212.0,0.09644]
[1767105511516,0.0241454,88241.0,88229.0,0.0113485]
[1767105511706,0.0113453,88255.0,88232.0,0.0113482]
[1767105511906,0.0113456,88253.0,88231.0,0.0113483]
[1767105512102,0.0113459,88250.0,88233.0,0.00017004]
[1767105512306,0.02414345,88249.0,88233.0,0.00017004]
[1767105512505,0.00017004,88251.0,88233.0,0.00017004]
[1767105512708,0.02414336,88250.0,88233.0,0.00017004]
[1767105512913,0.00017004,88251.0,88233.0,0.00017004]
[1767105513110,0.02414297,88250.0,88233.0,0.00017004]
[1767105513311,0.00017004,88251.0,88233.0,0.00017004]
[1767105513510,0.02414493,88250.0,88233.0,0.00017004]
[1767105513710,0.02414493,88249.0,88233.0,0.00017004]
[1767105513918,0.00017004,88251.0,88233.0,0.00017004]
[1767105514102,0.02414493,88250.0,88233.0,0.00017004]
[1767105514408,0.00017004,88251.0,88233.0,0.00017004]
[1767105515017,0.00017004,88251.0,88238.0,0.0113473]
[1767105515212,0.00017004,88251.0,88236.0,0.15384]
[1767105515417,0.00017004,88251.0,88234.0,0.0113478]
[1767105515806,0.00017004,88251.0,88233.0,0.01151804]
[1767105516207,0.011346,88250.0,88233.0,0.00017004]
[1767105516915,0.0113464,88247.0,88233.0,0.00017004]
[1767105517214,0.16992498,88250.0,88223.0,0.09644]
[1767105517607,0.16992498,88250.0,88207.0,0.06093779]
[1767105517809,0.0113504,88215.0,88195.0,0.09644]
[1767105518008,0.16992498,88210.0,88185.0,0.09644]
[1767105518205,0.00017004,88206.0,88193.0,0.0113532]
[1767105518410,0.00017004,88206.0,88189.0,0.01152364]
[1767105518612,0.00017004,88206.0,88192.0,0.0113533]
[1767105518920,0.00017004,88206.0,88189.0,0.00017004]
[1767105519104,4e-08,88206.0,88189.0,0.00017004]
[1767105519806,4e-08,88206.0,88193.0,0.0113532]
[1767105520008,0.011352,88203.0,88189.0,0.00017004]
[1767105520208,0.0113518,88205.0,88189.0,0.00017004]
[1767105520414,0.16992498,88200.0,88171.0,0.06093779]
[1767105520616,0.16992498,88190.0,88162.0,0.09644]
[1767105520818,0.0113543,88185.0,88163.0,0.0113571]
[1767105521530,0.00017014,88183.0,88165.0,0.00017014]
[1767105522023,0.01152474,88183.0,88165.0,0.00017014]
[1767105522323,0.00017014,88183.0,88165.0,0.01152694]
[1767105522624,0.00017014,88183.0,88168.0,0.0113564]
[1767105522822,0.00017014,88183.0,88165.0,0.00017014]
[1767105523036,0.16992498,88180.0,88147.0,0.09644]
[1767105523222,0.16992498,88170.0,88144.0,0.0113595]
[1767105523421,0.15399439,88169.0,88134.0,0.11341211]
[1767105523615,0.0113571,88163.0,88127.0,0.09644]
[1767105523816,0.15399439,88169.0,88134.0,0.0113608]
[1767105524025,0.0113581,88156.0,88127.0,0.09644]
[1767105524320,0.15405851,88155.0,88132.0,0.011361]
[1767105524710,0.16541661,88155.0,88128.0,0.0113116]
[1767105524920,0.16541661,88155.0,88127.0,0.09644]
[1767105524921,0.16541661,88155.0,88132.0,0.011361]
[1767105525121,0.15405851,88155.0,88132.0,0.011361]
[1767105525623,0.15400851,88155.0,88132.0,0.011361]
[1767105525924,0.16992498,88150.0,88129.0,0.0074]
[1767105526222,0.0113592,88147.0,88129.0,0.0074]
[1767105526426,0.16992498,88140.0,88123.0,9.748e-05]
[1767105526718,0.15400851,88139.0,88123.0,9.748e-05]
[1767105527110,0.05744,88139.0,88128.0,0.0113616]
[1767105527311,0.0113547,88182.0,88123.0,9.748e-05]
[1767105527528,0.0113564,88169.0,88123.0,9.748e-05]
[1767105527830,0.0113574,88162.0,88134.0,0.0113608]
[1767105528012,0.011356,88172.0,88142.0,0.0113597]
[1767105528325,0.0113574,88161.0,88108.0,0.0113641]
[1767105528622,0.0113574,88161.0,88085.0,0.06093779]
[1767105528623,0.30663003,88150.0,88076.0,0.06093779]
[1767105528820,0.0113636,88113.0,88086.0,0.011367]
[1767105529026,0.15396,88112.0,88086.0,0.011367]
[1767105529219,0.00017024,88108.0,88086.0,0.011367]
[1767105529425,9.748e-05,88107.0,88090.0,0.0113664]
[1767105530119,2e-08,88108.0,88077.0,0.05748]
[1767105530326,2e-08,88108.0,88099.0,0.0113652]
[1767105530534,2e-08,88108.0,88094.0,0.0113659]
[1767105530928,2e-08,88108.0,88092.0,0.09652]
[1767105531118,2e-08,88108.0,88097.0,0.0113655]
[1767105531520,2e-08,88108.0,88092.0,0.0113662]
[1767105531726,2e-08,88108.0,88091.0,0.00017024]
[1767105532726,0.0113659,88095.0,88066.0,0.0113695]
[1767105533025,0.0113666,88090.0,88058.0,0.09652]
[1767105533221,0.0113666,88090.0,88059.0,0.09652]
[1767105533422,0.09652,88094.0,88066.0,0.0113696]
[1767105533720,0.00017024,88089.0,88072.0,0.0113688]
[1767105533924,0.00017024,88089.0,88059.0,0.09652]
[1767105534125,0.00017024,88089.0,88070.0,0.0113691]
[1767105534525,0.00017024,88089.0,88065.0,0.0113696]
[1767105534720,0.00017024,88089.0,88069.0,0.0113692]
[1767105535225,0.00017024,88089.0,88011.0,0.06093779]
[1767105535226,0.00017024,88089.0,88064.0,0.0113697]
[1767105535925,0.00017024,88089.0,88068.0,0.0113693]
[1767105536123,0.00017024,88089.0,88054.0,0.09652]
[1767105536428,0.00017024,88089.0,88064.0,0.0113698]
[1767105537019,0.00017024,88089.0,88067.0,0.0113694]
[1767105537330,0.00017024,88089.0,88065.0,0.0113696]
[1767105537530,0.00017024,88089.0,88055.0,0.00395]
[1767105537730,0.01153694,88089.0,88063.0,0.0113699]
[1767105537929,0.01153694,88089.0,88066.0,0.0113695]
[1767105538126,0.00017024,88089.0,88057.0,0.09656]
[1767105538327,0.15404,88088.0,88067.0,0.0113694]
[1767105538526,0.0113674,88084.0,88057.0,0.09656]
[1767105538732,0.1654068,88088.0,88060.0,0.0113704]
[1767105538920,0.0113672,88085.0,88060.0,0.0113704]
[1767105539125,0.0113672,88085.0,88055.0,0.00395]
[1767105539126,0.15404,88088.0,88056.0,0.09656]
[1767105539325,0.0113679,88079.0,88056.0,0.09656]
[1767105539531,0.09656,88080.0,88065.0,0.0113697]
[1767105539929,0.09656,88080.0,88061.0,0.0113702]
[1767105540230,0.09651,88080.0,88064.0,0.0113698]
[1767105540432,0.00017024,88089.0,88067.0,0.0113694]
[1767105540624,0.00017024,88089.0,88056.0,0.09656]
[1767105540823,0.09656,88088.0,88078.0,0.011368]
[1767105541024,0.09656,88088.0,88057.0,0.12490642]
[1767105541330,0.09656,88088.0,88056.0,0.09656]
[1767105541533,0.09656,88088.0,88058.0,0.11353572]
[1767105541729,0.09656,88088.0,88075.0,0.0113684]
[1767105541938,0.00017024,88089.0,88087.0,0.0113668]
[1767105541939,4e-08,88089.0,88087.0,0.0113668]
[1767105542231,0.09656,88101.0,88073.0,0.09656]
[1767105542429,0.09656,88101.0,88005.0,0.0813048]
[1767105542430,0.09656,88101.0,88074.0,0.00395]
[1767105542737,0.0113667,88089.0,88074.0,0.00395]
[1767105542922,0.0113667,88089.0,88079.0,0.0113679]
[1767105542923,0.09656,88089.0,88079.0,0.0113679]
[1767105543128,0.00017024,88093.0,88079.0,0.0113679]
[1767105543323,0.09656,88092.0,88082.0,0.0113675]
[1767105543530,0.30528358,88127.0,88088.0,0.0113667]
[1767105543730,0.15404,88118.0,88074.0,0.00395]
[1767105544038,0.0113651,88101.0,88080.0,0.0113678]
[1767105544241,0.15412,88100.0,88080.0,0.0113678]
[1767105544536,0.0113658,88096.0,88081.0,0.00017024]
[1767105544735,0.09677024,88099.0,88081.0,0.00017024]
[1767105544936,0.09677024,88099.0,88026.0,0.0568734]
[1767105545138,0.24983593,88090.0,88037.0,0.0113733]
[1767105545441,0.15416,88089.0,88032.0,0.0966]
[1767105545833,0.0113707,88058.0,88037.0,0.0113733]
[1767105546033,0.00017034,88056.0,88040.0,0.0113729]
[1767105546334,9.529e-05,88055.0,88044.0,0.0113724]
[1767105546534,9.529e-05,88055.0,88039.0,0.00017034]
[1767105546834,0.09677034,88056.0,88039.0,0.00017034]
[1767105546835,3.4e-07,88056.0,88048.0,0.0113719]
[1767105547043,3.4e-07,88056.0,88044.0,0.0113723]
[1767105547643,0.0113711,88055.0,88039.0,0.00017034]
[1767105547831,4.65e-06,88054.0,88039.0,0.00017034]
[1767105548538,0.0113722,88046.0,88032.0,0.0966]
[1767105548733,0.0113726,88043.0,88022.0,0.0966]
[1767105548928,3.4e-07,88056.0,88017.0,0.05756]
[1767105548929,0.0966,88044.0,88017.0,0.0966]
[1767105549125,0.0966,88043.0,88018.0,0.0113758]
[1767105549430,0.0113731,88040.0,88017.0,0.0113758]
[1767105549641,0.0966,88043.0,88008.0,0.0966]
[1767105549642,0.00017034,88037.0,88020.0,0.00017034]
[1767105549829,0.00017034,88037.0,88024.0,0.011375]
[1767105550034,0.00017034,88037.0,88020.0,0.00017034]
[1767105550228,0.00012034,88037.0,88020.0,0.00017034]
[1767105550633,0.00012034,88037.0,88020.0,0.01154584]
[1767105550939,0.00012034,88037.0,88020.0,0.00017034]
[1767105551143,0.00012034,88037.0,88003.0,0.02858081]
[1767105551144,0.0113758,88019.0,88003.0,0.02858081]
[1767105551335,0.0113764,88014.0,88003.0,0.02858081]
[1767105551536,0.0966,88015.0,88003.0,0.02858081]
[1767105551940,0.0113736,88036.0,88010.0,0.0113768]
[1767105552138,0.00017044,88032.0,88018.0,0.0113757]
[1767105552338,4e-08,88032.0,88014.0,5.117e-05]
[1767105552542,4e-08,88032.0,88017.0,0.0113759]
[1767105552841,4e-08,88032.0,88014.0,5.117e-05]
[1767105553242,4e-08,88034.0,88032.0,0.011374]
[1767105553434,0.0576,88042.0,88032.0,0.011374]
[1767105553634,0.0113707,88058.0,88032.0,0.011374]
[1767105553834,0.0113713,88053.0,88032.0,0.011374]
[1767105554035,0.0576,88052.0,88038.0,0.0113732]
[1767105554238,0.00017044,88054.0,88042.0,0.0113726]
[1767105554442,4e-08,88054.0,88047.0,0.011372]
[1767105554742,4e-08,88054.0,88043.0,0.0113725]
[1767105554938,4e-08,88054.0,88036.0,0.00017044]
[1767105555335,4e-08,88054.0,88051.0,0.0113715]
[1767105555532,0.09664,88059.0,88046.0,0.0113721]
[1767105555933,0.09664,88059.0,88042.0,0.0113727]
[1767105556138,0.09664,88059.0,88046.0,0.0113722]
[1767105556448,0.00017044,88061.0,88046.0,0.0113721]
[1767105556745,0.00017044,88061.0,88036.0,0.00017044]
[1767105556746,4e-08,88061.0,88040.0,0.09364]
[1767105557047,4e-08,88061.0,88049.0,0.0113717]
[1767105557645,4e-08,88061.0,88040.0,0.09364]
[1767105557646,4e-08,88061.0,88052.0,0.0113714]
[1767105558049,4e-08,88061.0,88044.0,0.0113724]
[1767105558249,4e-08,88061.0,88054.0,0.0113711]
[1767105558446,4e-08,88061.0,88036.0,0.00017044]
[1767105558447,4e-08,88061.0,88041.0,0.0113728]
[1767105558750,4e-08,88061.0,88036.0,0.00017044]
[1767105558751,0.0113705,88060.0,88036.0,0.00017044]
[1767105559051,0.0113709,88056.0,88036.0,0.01154394]
[1767105559253,0.1542,88055.0,88036.0,0.01154394]
[1767105561557,0.1542,88055.0,88039.0,0.0113731]
[1767105561854,0.1542,88055.0,88036.0,0.00017044]
[1767105562649,0.1542,88055.0,88037.0,0.0113733]
[1767105562846,0.1542,88055.0,88037.0,0.0113732]
[1767105563041,0.1542,88055.0,88036.0,0.00017044]
[1767105563252,0.02414182,88054.0,88036.0,0.00017044]
[1767105563456,0.02414182,88053.0,88036.0,0.00017044]
[1767105563759,0.011373,88040.0,88012.0,0.09664]
[1767105564059,0.1542,88039.0,88018.0,0.0113757]
[1767105564253,0.1542,88039.0,88012.0,0.09664]
[1767105564254,0.09664,88038.0,88012.0,0.09664]
[1767105564555,0.0113706,88059.0,88012.0,0.09664]
[1767105564762,4e-08,88044.0,88037.0,0.0113733]
[1767105565053,0.05756,88050.0,88042.0,0.0113726]
[1767105565248,0.05756,88050.0,88023.0,0.09664]
[1767105565444,0.0113705,88060.0,88040.0,0.011373]
[1767105565649,0.17834664,88059.0,88040.0,0.011373]
[1767105565857,0.02431708,88058.0,88041.0,0.00017044]
[1767105566058,0.02414664,88057.0,88041.0,0.00017044]
[1767105566262,0.00017044,88058.0,88041.0,0.00017044]
[1767105566447,0.1542,88057.0,88041.0,0.00017044]
[1767105566758,0.1542,88057.0,88045.0,0.0113722]
[1767105566956,0.1542,88056.0,88042.0,0.0113727]
[1767105567455,0.1542,88056.0,88045.0,0.0113723]
[1767105568255,0.02416303,88055.0,88045.0,0.0113723]
[1767105568459,0.1542,88056.0,88041.0,0.01154314]
[1767105568755,0.02416301,88055.0,88041.0,0.01154314]
[1767105569057,0.1542,88056.0,88041.0,0.00017044]
[1767105569246,0.02416593,88055.0,88042.0,0.0113726]
[1767105569441,0.02416613,88054.0,88041.0,0.00017044]
[1767105569660,0.1542,88056.0,88041.0,0.00017044]
[1767105569852,0.02416601,88055.0,88041.0,0.00017044]
[1767105570045,0.1542,88056.0,88041.0,0.00017044]
[1767105570247,0.0241685,88055.0,88041.0,0.00017044]
[1767105570448,0.05756,88054.0,88045.0,0.0113722]
[1767105571359,4e-08,88058.0,88053.0,0.0113712]
[1767105571555,0.0113696,88066.0,88049.0,0.0113717]
[1767105571754,0.02417671,88065.0,88049.0,0.0113717]
[1767105572058,0.02417671,88064.0,88041.0,0.00017044]
[1767105572358,0.05756,88073.0,88057.0,0.0113707]
[1767105572553,0.1542,88073.0,88059.0,0.0113704]
[1767105572756,0.1542,88073.0,88057.0,0.0113707]
[1767105572956,0.0113704,88061.0,88042.0,0.0113726]
[1767105573147,0.0689304,88061.0,88044.0,0.0113724]
[1767105573851,0.05756,88061.0,88047.0,0.011372]
[1767105574962,0.05756,88061.0,88044.0,0.00017034]
[1767105575161,0.05756,88061.0,88045.0,0.0113723]
[1767105575361,0.05756,88061.0,88052.0,0.0113713]
[1767105575571,0.05756,88061.0,88048.0,0.0113718]
[1767105575766,0.05756,88061.0,88050.0,0.0113716]
[1767105575955,0.05756,88061.0,88044.0,0.00017034]
[1767105576956,0.0113704,88060.0,88044.0,0.00017034]
[1767105577263,0.05756,88061.0,88044.0,0.00017034]
[1767105577665,0.05756,88061.0,88045.0,0.0113722]
[1767105578258,0.05756,88061.0,88044.0,0.00017034]
[1767105579260,0.05756,88061.0,88044.0,0.01154264]
[1767105579462,0.0113688,88073.0,88053.0,0.0113712]
[1767105579662,0.15416,88072.0,88016.0,0.09664]
[1767105579969,0.0113739,88033.0,88016.0,0.09664]
[1767105580261,0.0113748,88026.0,88004.0,0.09664]
[1767105580466,0.0113749,88025.0,88006.0,0.0113773]
[1767105580663,0.0113752,88023.0,88007.0,0.00017034]
[1767105580858,0.00017034,88024.0,88007.0,0.00017034]
[1767105581259,0.00017034,88024.0,88010.0,0.0113768]
[1767105581457,0.00017034,88024.0,88007.0,0.00017034]
[1767105582167,0.0113756,88020.0,88007.0,0.00017034]
[1767105582358,0.00017034,88024.0,87991.0,0.0113793]
[1767105582359,0.0113766,88013.0,87991.0,0.0113793]
[1767105582559,0.15416,88012.0,87994.0,0.0113789]
[1767105582757,0.15416,88012.0,87989.0,0.09664]
[1767105582958,0.05752,88013.0,87989.0,0.09664]
[1767105583153,0.0688962,88015.0,87997.0,0.0113785]
[1767105583468,0.15427901,88014.0,87997.0,0.00017045]
[1767105583657,0.09664,88013.0,87997.0,0.00017045]
[1767105583858,0.0113766,88012.0,87997.0,0.00017045]
[1767105584663,0.09664,88013.0,87997.0,0.00017045]
[1767105585072,0.1080165,88013.0,87997.0,0.00017045]
[1767105585668,0.09664,88013.0,87997.0,0.00017045]
[1767105586165,0.00011901,88014.0,87997.0,0.00017045]
[1767105586365,0.00017034,88024.0,87971.0,0.06093779]
[1767105586366,0.30735593,88020.0,87971.0,0.06093779]
[1767105586569,0.0113769,88010.0,87961.0,0.0113832]
[1767105586769,0.17817679,88009.0,87988.0,0.0113796]
[1767105587068,0.1542,88008.0,87988.0,0.0113796]
[1767105587271,0.09668,88007.0,87961.0,0.0113832]
[1767105587466,5e-08,87993.0,87989.0,0.0113795]
[1767105587674,0.103,87992.0,87989.0,0.0113795]
[1767105587969,0.0113776,88005.0,87983.0,0.0113803]
[1767105588160,0.1655777,88004.0,87979.0,0.0113808]
[1767105588356,0.09668,88003.0,87979.0,0.0113808]
[1767105588563,0.17105874,88000.0,87982.0,0.00017045]
[1767105589471,0.00017045,88000.0,87985.0,0.01138]
[1767105589868,0.05752,87999.0,87988.0,0.0113796]
[1767105590176,0.00017045,88000.0,87982.0,0.00017045]
[1767105590362,0.1542,87999.0,87983.0,0.0113802]
[1767105591471,0.1542,87999.0,87982.0,0.00017045]
[1767105591969,0.17088829,87992.0,87982.0,0.00017045]
[1767105592165,0.1542,87999.0,87982.0,0.00017045]
[1767105592166,0.05752,87991.0,87982.0,0.00017045]
[1767105592566,0.05752,87991.0,87972.0,0.0113817]
[1767105592867,0.0113787,87996.0,87974.0,0.0113814]
[1767105593068,0.0113796,87989.0,87954.0,0.068904]
[1767105593269,0.17088829,87980.0,87966.0,0.0113825]
[1767105593469,0.05752,87979.0,87966.0,0.0113825]
[1767105594065,0.05752,87978.0,87964.0,5.139e-05]
[1767105594264,0.17088829,88010.0,87973.0,0.0113816]
[1767105594568,0.17088829,88010.0,87962.0,0.09668]
[1767105594569,0.1542,88009.0,87995.0,0.0113787]
[1767105594769,0.0113757,88020.0,87975.0,0.09668]
[1767105594963,0.0113762,88015.0,87975.0,0.09668]
[1767105595159,0.0088,88014.0,87986.0,0.00017045]
[1767105595371,0.00017045,88004.0,87986.0,0.00017045]
[1767105595667,0.05769045,88004.0,87986.0,0.00017045]
[1767105595871,0.17088829,88000.0,87986.0,0.00017045]
[1767105596172,0.17088829,88000.0,87975.0,0.0113813]
[1767105596366,0.0113794,87991.0,87971.0,0.0113818]
[1767105596567,0.0113794,87991.0,87966.0,0.09668]
[1767105596568,0.32508829,87990.0,87967.0,0.0113823]
[1767105596767,0.1542,87989.0,87970.0,0.0113819]
[1767105596966,0.1542,87989.0,87971.0,5.139e-05]
[1767105597162,0.0113797,87988.0,87971.0,5.139e-05]
[1767105597472,0.1542,87989.0,87971.0,5.139e-05]
[1767105597868,0.01138,87986.0,87971.0,5.139e-05]
[1767105598474,0.1542,87989.0,87971.0,5.139e-05]
[1767105598869,0.1542,87989.0,87972.0,0.0113817]
[1767105599464,0.0113797,87988.0,87971.0,5.139e-05]
[1767105599774,0.1542,87989.0,87955.0,0.09678469]
[1767105599775,0.0113813,87976.0,87955.0,0.09678469]
[1767105600072,0.05752,87981.0,87968.0,0.0113822]
[1767105600370,0.05752,87981.0,87955.0,0.09678469]
[1767105600565,0.05752,87981.0,87962.0,0.011383]
[1767105600764,0.00017045,87980.0,87962.0,0.011383]
[1767105600964,0.00017045,87980.0,87955.0,0.00010469]
[1767105601160,0.17105874,87980.0,87942.0,0.09672]
[1767105601469,0.17088829,87970.0,87950.0,0.0113846]
[1767105601665,0.17088829,87970.0,87942.0,0.09672]
[1767105601666,0.0113829,87964.0,87929.0,0.05752]
[1767105601864,0.00017055,87955.0,87946.0,0.011385]
[1767105602063,0.00017055,87955.0,87945.0,0.0113852]
[1767105602272,4e-08,87955.0,87953.0,0.0113842]
[1767105602570,0.04108,87975.0,87949.0,0.0113846]
[1767105602775,0.17088829,87990.0,87950.0,0.0113845]
[1767105602963,0.1656196,87989.0,87970.0,0.011382]
[1767105603168,0.15424,87988.0,87974.0,0.0113815]
[1767105603369,0.15424,87988.0,87948.0,0.09672]
[1767105603370,0.011381,87978.0,87948.0,0.09672]
[1767105603567,0.17088829,87970.0,87940.0,0.09672]
[1767105603868,0.17088829,87950.0,87934.0,0.0113866]
[1767105604070,0.05756,87953.0,87934.0,0.0113866]
[1767105604272,0.17088829,87950.0,87930.0,0.09672]
[1767105604573,0.17088829,87950.0,87923.0,0.05756]
[1767105604574,0.01155545,87949.0,87929.0,0.0113873]
[1767105604769,0.00017055,87949.0,87923.0,0.05756]
[1767105605578,0.00017055,87949.0,87910.0,0.18227809]
[1767105605579,0.01155535,87949.0,87927.0,0.0113875]
[1767105605767,0.00017055,87949.0,87910.0,0.0113898]
[1767105605975,0.00017055,87949.0,87923.0,0.011388]
[1767105606277,0.0113856,87943.0,87923.0,0.011388]
[1767105606469,0.0113856,87943.0,87916.0,0.09672]
[1767105606470,0.05756,87942.0,87932.0,0.0113869]
[1767105606666,0.05756,87942.0,87924.0,0.0113879]
[1767105606873,0.17088829,87940.0,87924.0,0.0113879]
[1767105607174,0.00017055,87949.0,87916.0,0.09672]
[1767105607379,5e-08,87949.0,87924.0,0.0113879]
[1767105607585,5e-08,87949.0,87923.0,0.05756]
[1767105607881,5e-08,87949.0,87939.0,0.0113859]
[1767105608069,5e-08,87949.0,87942.0,0.0113856]
[1767105608270,0.05756,87950.0,87920.0,0.0113885]
[1767105608469,0.011385,87947.0,87926.0,0.0113876]
[1767105608675,0.011385,87947.0,87918.0,0.15428]
[1767105608876,0.22844829,87950.0,87919.0,0.0113885]
[1767105608877,0.18227419,87940.0,87919.0,0.0113885]
[1767105609086,0.17088829,87940.0,87923.0,0.0113881]
[1767105609267,0.00017055,87938.0,87920.0,0.00017055]
[1767105609775,5e-08,87938.0,87934.0,0.0113866]
[1767105609980,0.13712,87950.0,87938.0,0.0113861]
[1767105610178,0.0404,87950.0,87938.0,0.0113861]
[1767105610382,0.0404,87950.0,87941.0,0.0113857]
[1767105610874,0.0404,87950.0,87937.0,0.00017055]
[1767105611269,0.00017055,87954.0,87943.0,0.0113854]
[1767105611472,0.05756,87961.0,87937.0,0.00017055]
[1767105611684,0.05756,87960.0,87942.0,0.0113855]
[1767105611875,0.17088829,87952.0,87928.0,0.09676]
[1767105612080,0.0113835,87959.0,87928.0,0.09676]
[1767105612281,0.0113839,87956.0,87934.0,0.0113866]
[1767105612481,0.0113842,87953.0,87933.0,0.0113868]
[1767105612683,0.0113842,87953.0,87928.0,0.09676]
[1767105612884,0.00017055,87949.0,87933.0,0.0113868]
[1767105613091,0.05773055,87949.0,87932.0,0.01155735]
[1767105613396,0.05773055,87949.0,87936.0,0.0113864]
[1767105613595,0.05773055,87949.0,87932.0,0.00017055]
[1767105613790,0.0113825,87967.0,87946.0,0.011385]
[1767105614097,0.1782376,87966.0,87945.0,0.0113852]
[1767105614288,0.0113835,87959.0,87941.0,0.0113858]
[1767105614484,0.0113838,87956.0,87936.0,0.0113863]
[1767105614691,0.0113834,87960.0,87935.0,0.09676]
[1767105614891,0.00017055,87956.0,87945.0,0.0113852]
[1767105615090,0.011384,87955.0,87939.0,0.00017055]
[1767105615290,0.00017055,87956.0,87931.0,0.08376]
[1767105615598,0.011386,87940.0,87921.0,0.0113882]
[1767105615998,0.011386,87940.0,87917.0,0.09676]
[1767105615999,0.0113863,87938.0,87918.0,0.0113887]
[1767105616289,5e-08,87937.0,87932.0,0.0113869]
[1767105616690,5e-08,87937.0,87919.0,0.00017055]
[1767105617295,5e-08,87937.0,87924.0,0.0113879]
[1767105617482,0.05756,87946.0,87919.0,0.00017055]
[1767105617684,0.05756,87956.0,87925.0,0.11372941]
[1767105617994,0.05756,87956.0,87949.0,0.0113846]
[1767105618187,0.09676,87959.0,87935.0,0.09676]
[1767105618384,0.011385,87947.0,87928.0,0.0113874]
[1767105618588,0.0113854,87944.0,87929.0,0.00017055]
[1767105618783,0.0113853,87945.0,87929.0,0.00017055]
[1767105618988,0.00017055,87946.0,87918.0,0.09676]
[1767105619189,0.09676,87960.0,87946.0,0.0113851]
[1767105619388,0.09676,87960.0,87948.0,0.0113847]
[1767105619690,0.09676,87960.0,87948.0,0.0113848]
[1767105619998,0.09676,87960.0,87934.0,0.09676]
[1767105620200,5e-08,87956.0,87938.0,0.00017055]
[1767105620494,0.09676,87983.0,87949.0,0.0113846]
[1767105620698,3e-08,87982.0,87952.0,0.0113843]
[1767105620898,0.09676,87997.0,87981.0,0.0113805]
[1767105621098,0.09676,87997.0,87983.0,0.0113803]
[1767105621301,0.09676,87997.0,87979.0,0.0113808]
[1767105621490,0.00017055,87997.0,87979.0,0.01155135]
[1767105621692,0.17088829,87990.0,87946.0,0.0113851]
[1767105621995,0.0113793,87992.0,87969.0,0.011382]
[1767105622398,0.0113793,87992.0,87970.0,0.09676]
[1767105622904,0.00017055,87990.0,87972.0,0.00017055]
[1767105623097,0.01138,87986.0,87967.0,0.05756]
[1767105623404,0.0113806,87981.0,87957.0,0.09676]
[1767105623604,0.05756,87989.0,87960.0,0.0113832]
[1767105623605,0.0113802,87985.0,87960.0,0.0113832]
[1767105623790,0.18226909,87980.0,87959.0,0.0113834]
[1767105623995,0.0113813,87976.0,87958.0,0.09676]
[1767105624403,0.0113813,87976.0,87924.0,0.011388]
[1767105624404,0.17088829,87970.0,87950.0,0.1081445]
[1767105625107,0.05756,87977.0,87951.0,0.00017055]
[1767105625703,0.0113819,87971.0,87951.0,0.00017055]
[1767105625903,0.0113824,87967.0,87951.0,0.00017055]
[1767105626095,0.0113829,87964.0,87948.0,0.05756]
[1767105626296,0.0113827,87965.0,87948.0,0.05756]
[1767105626497,0.0113827,87965.0,87946.0,0.09676]
[1767105626706,0.17088829,87960.0,87938.0,0.0113861]
[1767105626903,0.17088829,87960.0,87939.0,0.15432]
[1767105627106,0.00017055,87958.0,87940.0,0.09676]
[1767105627404,0.00017055,87958.0,87941.0,0.09676]
[1767105627602,0.00017055,87958.0,87942.0,0.0113856]
[1767105628596,0.00017055,87958.0,87941.0,0.09676]
[1767105629406,5e-08,87958.0,87941.0,0.09676]
[1767105629701,5e-08,87958.0,87951.0,0.0113844]
[1767105629901,0.0113823,87968.0,87949.0,0.05756]
[1767105630103,0.0113823,87968.0,87947.0,0.0113849]
[1767105630104,0.17088829,87970.0,87950.0,0.0113845]
[1767105630508,0.0113822,87969.0,87950.0,0.0113845]
[1767105630899,0.00017055,87968.0,87951.0,0.00017055]